bitfinex/quotes_BTCUSD_20220109
["timestamp","ask_amount","ask_price","bid_price","bid_amount"]
[1641751470323,1.09485704,42078.0,42071.0,0.00020627]
[1641751470722,1.10085704,42078.0,42071.0,0.03120627]
[1641751471171,1.10085704,42078.0,42072.0,0.05148839]
[1641751472074,1.25429541,42078.0,42072.0,0.05148839]
[1641751472474,1.25429541,42078.0,42071.0,0.00041254]
[1641751472673,1.27329541,42078.0,42071.0,0.00041254]
[1641751472875,1.27329541,42078.0,42071.0,0.00020627]
[1641751473275,1.21385704,42078.0,42071.0,0.05169429]
[1641751473473,1.21385704,42078.0,42071.0,0.00020627]
[1641751473674,1.21385704,42078.0,42072.0,0.05148802]
[1641751473874,1.21385704,42078.0,42071.0,0.05169444]
[1641751474076,1.19485704,42078.0,42073.0,0.05148802]
[1641751474275,1.19485704,42078.0,42072.0,0.05148802]
[1641751474576,1.25429567,42078.0,42072.0,0.05148802]
[1641751474775,1.25429567,42078.0,42071.0,0.0002065]
[1641751474776,0.059441,42077.0,42071.0,0.0002065]
[1641751475026,1.25429567,42078.0,42071.0,0.0002065]
[1641751475027,0.00127958,42073.0,42071.0,0.0002065]
[1641751476023,0.71192421,42072.0,42070.0,0.0002065]
[1641751476727,0.73792421,42072.0,42070.0,0.0002065]
[1641751477124,0.73792421,42072.0,42069.0,0.00020649]
[1641751477725,0.6398611,42072.0,42069.0,0.00020649]
[1641751477925,0.34664329,42075.0,42069.0,0.00020649]
[1641751478225,0.05,42076.0,42069.0,0.05149332]
[1641751478423,0.15,42078.0,42068.0,0.00020649]
[1641751478674,0.032,42076.0,42070.0,0.05149332]
[1641751478876,0.032,42076.0,42073.0,0.26144373]
[1641751479977,0.24,42078.0,42073.0,0.26144373]
[1641751480775,0.265,42078.0,42073.0,0.26444373]
[1641751482080,0.24,42078.0,42071.0,0.00020649]
[1641751482724,0.257,42078.0,42071.0,0.00420649]
[1641751483126,0.257,42078.0,42072.0,0.34345565]
[1641751483326,0.257,42078.0,42074.0,0.27398747]
[1641751483928,0.24,42078.0,42074.0,0.27398747]
[1641751484730,0.243,42078.0,42074.0,0.28698747]
[1641751485131,0.243,42078.0,42074.0,0.013]
[1641751485930,0.24,42078.0,42072.0,0.34345565]
[1641751486174,0.24,42078.0,42075.0,0.05135532]
[1641751486375,0.24,42078.0,42076.0,0.36926438]
[1641751486575,0.24,42078.0,42076.0,0.4800357]
[1641751486775,0.24,42078.0,42077.0,1.76877981]
[1641751486974,0.24,42078.0,42077.0,2.26567213]
[1641751487575,0.24,42078.0,42077.0,2.60216923]
[1641751488075,0.24,42078.0,42077.0,2.66695908]
[1641751488674,0.24,42078.0,42077.0,2.68495908]
[1641751488875,0.24,42078.0,42077.0,2.34846198]
[1641751489075,0.24,42078.0,42077.0,2.28367213]
[1641751489926,1.16349964,42078.0,42077.0,1.16567213]
[1641751490329,1.16349964,42078.0,42077.0,0.49689232]
[1641751490528,1.16349964,42078.0,42077.0,0.05135532]
[1641751490725,1.16349964,42078.0,42077.0,0.06635532]
[1641751490925,1.16349964,42078.0,42077.0,0.015]
[1641751491331,1.49224895,42078.0,42077.0,0.015]
[1641751491925,0.41049297,42075.0,42072.0,0.68009392]
[1641751492126,0.41049297,42075.0,42072.0,0.34345565]
[1641751492326,0.41049297,42075.0,42073.0,0.05136454]
[1641751493671,0.41049297,42075.0,42071.0,0.00020648]
[1641751494670,0.41049297,42075.0,42071.0,0.05220648]
[1641751495069,0.41049297,42075.0,42072.0,0.05133934]
[1641751495471,0.41049297,42075.0,42071.0,0.05220648]
[1641751495670,0.41049297,42075.0,42071.0,0.05220649]
[1641751495870,0.41049297,42075.0,42072.0,0.05134143]
[1641751496271,0.41049297,42075.0,42071.0,0.05154792]
[1641751496473,0.41049297,42075.0,42071.0,0.00020649]
[1641751496673,0.41049297,42075.0,42072.0,0.11934217]
[1641751497074,0.41049297,42075.0,42072.0,0.068]
[1641751498118,0.41049297,42075.0,42073.0,0.24613715]
[1641751498718,0.41049297,42075.0,42073.0,0.26813715]
[1641751500019,0.41049297,42075.0,42074.0,0.7013435]
[1641751500221,0.41049297,42075.0,42074.0,0.0513435]
[1641751500719,0.41049297,42075.0,42074.0,0.0683435]
[1641751501169,0.41049297,42075.0,42074.0,0.0633435]
[1641751501970,1.16349964,42078.0,42074.0,0.4463435]
[1641751502173,1.16349964,42078.0,42077.0,0.32621367]
[1641751502772,1.16349964,42078.0,42077.0,0.33721367]
[1641751503272,1.16349964,42078.0,42077.0,0.011]
[1641751504172,1.16349964,42078.0,42073.0,0.24613715]
[1641751504573,1.16349964,42078.0,42072.0,0.91448378]
[1641751504771,1.16349964,42078.0,42073.0,0.016]
[1641751505635,1.16349964,42078.0,42073.0,0.26161518]
[1641751506033,1.16349964,42078.0,42073.0,0.31041972]
[1641751506234,1.16349964,42078.0,42074.0,0.33264763]
[1641751506436,1.16349964,42078.0,42073.0,0.24561518]
[1641751506635,1.16349964,42078.0,42073.0,0.30503432]
[1641751506836,1.16349964,42078.0,42074.0,0.015]
[1641751508038,1.16349964,42078.0,42073.0,0.24561518]
[1641751508873,1.16349964,42078.0,42073.0,0.26361518]
[1641751509872,1.16349964,42078.0,42073.0,0.32829916]
[1641751510074,1.16349964,42078.0,42073.0,0.31029916]
[1641751510878,1.16349964,42078.0,42073.0,0.32829916]
[1641751511977,1.16349964,42078.0,42073.0,0.31029916]
[1641751512278,1.16349964,42078.0,42073.0,0.90600076]
[1641751512925,1.16349964,42078.0,42073.0,0.92400076]
[1641751514125,1.16349964,42078.0,42073.0,0.90600076]
[1641751514329,1.16349964,42078.0,42073.0,0.66038558]
[1641751514728,1.16349964,42078.0,42073.0,0.5957016]
[1641751514928,1.16349964,42078.0,42073.0,0.6137016]
[1641751515630,1.16349964,42078.0,42075.0,0.25074994]
[1641751516274,1.16349964,42078.0,42076.0,0.05118779]
[1641751516871,1.16349964,42078.0,42076.0,0.06418779]
[1641751517373,1.16349964,42078.0,42077.0,0.03118779]
[1641751517572,1.16349964,42078.0,42076.0,0.013]
[1641751518874,1.16349964,42078.0,42076.0,0.026]
[1641751520124,1.16349964,42078.0,42074.0,0.5973078]
[1641751520926,1.16349964,42078.0,42074.0,0.67722072]
[1641751521926,1.16349964,42078.0,42074.0,0.6133078]
[1641751522126,1.16349964,42078.0,42074.0,0.5973078]
[1641751522728,0.37532987,42076.0,42074.0,0.5973078]
[1641751522927,0.69985172,42075.0,42074.0,0.6103078]
[1641751523128,0.34985172,42075.0,42074.0,0.6103078]
[1641751523327,2.01459593,42075.0,42074.0,0.6103078]
[1641751523527,1.66474421,42075.0,42074.0,0.6103078]
[1641751523778,0.37657584,42076.0,42074.0,0.6103078]
[1641751524179,0.33054627,42075.0,42074.0,0.5973078]
[1641751524779,0.73054627,42075.0,42074.0,0.5973078]
[1641751524978,0.55,42074.0,42071.0,0.00020649]
[1641751525179,0.00127255,42072.0,42071.0,0.00020649]
[1641751525379,0.00127255,42072.0,42071.0,0.00041298]
[1641751525580,0.00127255,42072.0,42071.0,0.00020649]
[1641751525779,0.32806205,42072.0,42071.0,0.00020649]
[1641751525979,0.68660934,42072.0,42071.0,0.00020649]
[1641751526179,0.32806205,42072.0,42071.0,0.00020649]
[1641751526379,0.47806205,42072.0,42071.0,0.00020649]
[1641751526581,0.82535973,42072.0,42069.0,0.00020649]
[1641751526781,0.89335973,42072.0,42069.0,0.00020649]
[1641751527430,0.1188973,42071.0,42069.0,0.00020649]
[1641751527638,0.33704325,42070.0,42068.0,0.00020649]
[1641751527831,0.24486101,42069.0,42068.0,0.00020649]
[1641751528231,0.59081315,42069.0,42068.0,0.00020649]
[1641751528832,0.60381315,42069.0,42066.0,0.0002065]
[1641751529934,0.60381315,42069.0,42065.0,0.0002065]
[1641751530134,0.59028315,42069.0,42065.0,0.0002065]
[1641751530535,0.48433101,42069.0,42065.0,0.0002065]
[1641751531036,0.04825575,42069.0,42065.0,0.0052065]
[1641751531473,0.04825575,42069.0,42065.0,0.0002065]
[1641751531871,0.04343018,42069.0,42065.0,0.0002065]
[1641751532672,0.00943018,42069.0,42067.0,0.32958494]
[1641751532874,0.01643018,42069.0,42067.0,0.32958494]
[1641751533073,0.01643018,42069.0,42065.0,0.016413]
[1641751533373,0.01643018,42069.0,42065.0,0.0162065]
[1641751533973,0.01643018,42069.0,42068.0,0.27399754]
[1641751534774,0.00943018,42069.0,42068.0,0.27399754]
[1641751535031,0.00943018,42069.0,42068.0,0.29099754]
[1641751536133,0.00943018,42069.0,42068.0,0.27399754]
[1641751536937,0.00943018,42069.0,42068.0,0.29099754]
[1641751538237,0.00943018,42069.0,42066.0,0.5959081]
[1641751538238,0.00943018,42069.0,42066.0,0.5958083]
[1641751538436,2.41869409,42069.0,42066.0,0.5958083]
[1641751538885,2.47269409,42069.0,42066.0,0.0201067]
[1641751539490,2.47269409,42069.0,42066.0,0.02]
[1641751539684,0.4585859,42067.0,42066.0,0.02]
[1641751540085,0.4585859,42067.0,42065.0,0.0001067]
[1641751540486,0.4585859,42067.0,42064.0,0.00010864]
[1641751540885,0.4635859,42067.0,42065.0,0.031]
[1641751542093,0.4585859,42067.0,42063.0,0.00021216]
[1641751542730,0.4585859,42067.0,42064.0,0.00021216]
[1641751542928,0.4685859,42067.0,42064.0,0.00021216]
[1641751543727,0.4685859,42067.0,42063.0,0.00921216]
[1641751544128,0.4585859,42067.0,42063.0,0.00021216]
[1641751544732,0.4585859,42067.0,42062.0,0.41321216]
[1641751544930,0.4685859,42067.0,42063.0,0.00921012]
[1641751545133,0.4677859,42067.0,42063.0,0.00921012]
[1641751545331,0.46903962,42067.0,42063.0,0.00921012]
[1641751545534,0.46885411,42067.0,42063.0,0.00921012]
[1641751546184,0.45885411,42067.0,42062.0,0.41321216]
[1641751546386,0.00122811,42063.0,42062.0,0.41321216]
[1641751546986,0.40922811,42063.0,42062.0,0.42721216]
[1641751547186,0.40922811,42063.0,42062.0,0.014]
[1641751547389,1.10232724,42063.0,42062.0,0.014]
[1641751547786,0.84988644,42063.0,42062.0,0.014]
[1641751548186,0.84188644,42063.0,42061.0,0.004]
[1641751548387,0.9608062,42063.0,42061.0,0.004]
[1641751548590,0.35679516,42062.0,42061.0,0.004]
[1641751548789,0.41047204,42055.0,42051.0,0.004]
[1641751550226,0.61047204,42055.0,42051.0,0.004]
[1641751550427,0.61047204,42055.0,42051.0,0.00421234]
[1641751550827,0.2,42055.0,42051.0,0.00421234]
[1641751551434,0.2,42055.0,42051.0,0.00442284]
[1641751551626,0.2,42055.0,42051.0,0.0042105]
[1641751552229,0.18000001,42055.0,42051.0,0.0042105]
[1641751553678,0.18000001,42055.0,42051.0,0.00420642]
[1641751554977,0.18000001,42055.0,42052.0,0.386127]
[1641751555381,0.18000001,42055.0,42053.0,0.39072564]
[1641751555579,0.18000001,42055.0,42054.0,1.486127]
[1641751555778,0.12152218,42055.0,42054.0,1.486127]
[1641751556376,1.0,42067.0,42055.0,1.1]
[1641751556578,1.0,42067.0,42065.0,0.36865577]
[1641751556778,1.0,42067.0,42066.0,1.45563817]
[1641751557433,1.0,42067.0,42066.0,1.78559346]
[1641751557727,1.0,42067.0,42066.0,2.01041201]
[1641751557930,1.0,42067.0,42066.0,0.57034562]
[1641751558429,1.0,42067.0,42066.0,1.07034562]
[1641751559030,1.0,42067.0,42066.0,1.09034562]
[1641751560131,1.0,42067.0,42066.0,1.07034562]
[1641751560333,0.00019337,42072.0,42066.0,2.00940139]
[1641751560544,0.00019337,42072.0,42071.0,0.0012406]
[1641751560834,0.50551177,42088.0,42072.0,1.28602112]
[1641751561032,0.40288015,42086.0,42082.0,0.00124061]
[1641751561286,1.7014637,42090.0,42070.0,0.04871506]
[1641751561287,0.00041806,42078.0,42070.0,0.04871506]
[1641751561486,0.00041806,42078.0,42075.0,0.3112954]
[1641751561685,0.00041806,42078.0,42076.0,0.386127]
[1641751562287,0.2993845,42083.0,42076.0,0.386127]
[1641751562486,0.2993845,42083.0,42075.0,0.3112954]
[1641751562890,0.35861606,42088.0,42079.0,0.32779979]
[1641751563787,0.40861606,42088.0,42076.0,0.017]
[1641751564089,0.2830261,42083.0,42075.0,0.3112954]
[1641751564928,0.2830261,42083.0,42075.0,0.3272954]
[1641751565128,0.2830261,42083.0,42075.0,0.67446915]
[1641751565731,0.00020408,42081.0,42075.0,0.67446915]
[1641751566334,0.00020408,42081.0,42075.0,0.65846915]
[1641751566530,0.00020408,42081.0,42075.0,0.3112954]
[1641751566731,0.0002021,42080.0,42075.0,0.3112954]
[1641751566930,0.0002021,42080.0,42075.0,0.3362954]
[1641751567933,0.00020209,42080.0,42075.0,0.3362954]
[1641751568875,0.00040418,42080.0,42075.0,0.3362954]
[1641751569077,0.00020209,42080.0,42075.0,0.3482954]
[1641751569475,0.00020209,42080.0,42076.0,0.445542]
[1641751569776,0.00020209,42080.0,42077.0,0.37267051]
[1641751569974,0.00020209,42080.0,42078.0,0.386127]
[1641751570175,0.00019255,42080.0,42079.0,1.29270965]
[1641751570375,0.00019255,42080.0,42079.0,1.98897767]
[1641751570575,0.00019255,42080.0,42079.0,1.63697547]
[1641751570977,0.00019255,42080.0,42079.0,1.65197547]
[1641751571375,0.00019256,42082.0,42079.0,1.65197547]
[1641751571677,0.00019256,42082.0,42079.0,1.32525947]
[1641751571974,0.00019256,42082.0,42079.0,1.52525947]
[1641751572176,0.00019256,42082.0,42079.0,1.51025947]
[1641751572430,0.00019256,42083.0,42079.0,1.51025947]
[1641751572935,0.01419256,42083.0,42079.0,1.52025947]
[1641751573533,0.01419256,42083.0,42081.0,0.42942839]
[1641751573731,0.01419256,42083.0,42082.0,0.91053231]
[1641751573931,0.01419256,42083.0,42082.0,0.36053231]
[1641751574130,0.01419256,42083.0,42082.0,0.71053231]
[1641751574331,0.00019256,42083.0,42082.0,0.71053231]
[1641751574532,0.000193,42085.0,42082.0,0.36053231]
[1641751574730,0.000193,42085.0,42082.0,0.30112531]
[1641751574931,0.000193,42085.0,42082.0,0.31712531]
[1641751575733,0.000193,42086.0,42082.0,0.31712531]
[1641751576777,0.000193,42086.0,42082.0,0.30112531]
[1641751576980,0.000193,42086.0,42082.0,0.31712531]
[1641751577181,0.000193,42086.0,42082.0,0.016]
[1641751577778,0.00122515,42091.0,42082.0,0.016]
[1641751578179,1.26576287,42094.0,42088.0,0.26094589]
[1641751578581,0.34746287,42094.0,42088.0,0.26094589]
[1641751578779,0.34746287,42094.0,42083.0,0.3082291]
[1641751578979,0.00019971,42093.0,42083.0,0.3082291]
[1641751579179,0.34219237,42093.0,42083.0,0.3082291]
[1641751579379,0.34219237,42093.0,42081.0,0.0012263]
[1641751580029,0.00019971,42090.0,42081.0,0.0012263]
[1641751580229,0.00019971,42090.0,42087.0,0.30562252]
[1641751580431,0.00019971,42090.0,42088.0,0.05939778]
[1641751580630,0.00019971,42090.0,42088.0,0.06062146]
[1641751580839,0.00019971,42090.0,42089.0,1.33733162]
[1641751581234,0.00019971,42090.0,42089.0,1.78974486]
[1641751581433,0.00019971,42091.0,42090.0,0.81060174]
[1641751581630,0.00019971,42091.0,42090.0,1.19672874]
[1641751582435,0.00019971,42093.0,42092.0,0.60442493]
[1641751582631,0.00019971,42093.0,42092.0,0.99055193]
[1641751583031,0.00019971,42093.0,42092.0,0.66555193]
[1641751583432,0.00019229,42095.0,42092.0,0.66555193]
[1641751583686,0.00019229,42095.0,42092.0,0.27942493]
[1641751583993,0.00019229,42095.0,42094.0,0.99522863]
[1641751584187,0.92749229,42105.0,42095.0,1.1]
[1641751584387,0.92749229,42105.0,42094.0,0.24522863]
[1641751584787,0.00019229,42096.0,42094.0,0.24522863]
[1641751584989,0.00019229,42096.0,42095.0,0.386127]
[1641751585692,0.004,42109.0,42095.0,0.38737067]
[1641751585693,0.37375072,42109.0,42095.0,0.38737067]
[1641751585892,0.37375072,42109.0,42095.0,0.00124367]
[1641751586090,0.004,42109.0,42102.0,0.059378]
[1641751586291,0.004,42109.0,42103.0,0.05937576]
[1641751586496,0.004,42109.0,42107.0,0.33819706]
[1641751586691,0.004,42109.0,42106.0,0.28890018]
[1641751587090,0.004,42109.0,42107.0,0.007]
[1641751588926,0.004,42109.0,42107.0,0.016]
[1641751590327,0.32285977,42109.0,42101.0,0.64547256]
[1641751590527,0.32285977,42109.0,42101.0,0.33543092]
[1641751590929,0.32285977,42109.0,42107.0,0.2]
[1641751591983,0.41463191,42108.0,42107.0,0.2]
[1641751592183,0.40463191,42108.0,42107.0,0.2]
[1641751592984,0.40463191,42108.0,42107.0,0.204]
[1641751594187,0.40463191,42108.0,42107.0,0.2]
[1641751594788,0.74681349,42108.0,42107.0,0.2]
[1641751595037,0.39858203,42098.0,42095.0,0.2824]
[1641751595237,0.39858203,42098.0,42097.0,0.504886]
[1641751596437,0.38858203,42098.0,42097.0,0.504886]
[1641751597040,0.38858203,42098.0,42097.0,0.530886]
[1641751597239,0.38858203,42098.0,42097.0,0.412127]
[1641751598239,0.38858203,42098.0,42097.0,0.386127]
[1641751598885,0.38858203,42098.0,42097.0,0.504887]
[1641751599085,0.38858203,42098.0,42097.0,0.531887]
[1641751599484,0.38858203,42098.0,42097.0,0.8873606]
[1641751600486,0.38858203,42098.0,42097.0,0.8603606]
[1641751601087,0.38858203,42098.0,42097.0,0.8863606]
[1641751602290,0.38858203,42098.0,42097.0,0.8603606]
[1641751603131,0.38858203,42098.0,42097.0,0.9013606]
[1641751603531,0.38858203,42098.0,42097.0,0.545887]
[1641751604333,0.38858203,42098.0,42097.0,0.504887]
[1641751605134,0.38858203,42098.0,42097.0,0.555887]
[1641751605334,0.00019213,42100.0,42098.0,1.04199003]
[1641751605538,0.00019213,42100.0,42099.0,0.386127]
[1641751606183,0.00019213,42101.0,42099.0,0.386127]
[1641751606381,0.00019213,42101.0,42099.0,0.78859356]
[1641751606580,0.00019213,42101.0,42100.0,0.94310745]
[1641751606779,0.00019213,42101.0,42100.0,1.32923445]
[1641751607380,0.00019213,42102.0,42100.0,1.32923445]
[1641751607584,0.30193044,42108.0,42102.0,0.7]
[1641751607780,0.00076842,42108.0,42104.0,0.059373]
[1641751608180,0.00124372,42113.0,42104.0,0.059373]
[1641751608781,0.32138097,42111.0,42104.0,0.059373]
[1641751608981,0.32138097,42111.0,42104.0,0.11874594]
[1641751609182,0.69212771,42111.0,42104.0,0.12774594]
[1641751609581,0.00419882,42109.0,42104.0,0.12774594]
[1641751610233,0.00419882,42109.0,42101.0,0.118746]
[1641751610834,0.00419882,42109.0,42105.0,0.118735]
[1641751611032,0.00419882,42109.0,42105.0,0.177315]
[1641751611633,0.00419883,42109.0,42105.0,0.177315]
[1641751611834,0.00419883,42109.0,42107.0,0.29698388]
[1641751612434,0.00419883,42109.0,42105.0,0.118735]
[1641751612837,0.004,42109.0,42108.0,0.00123614]
[1641751613034,0.004,42109.0,42107.0,0.06066356]
[1641751613690,0.004,42109.0,42108.0,1.286127]
[1641751613884,0.004,42109.0,42108.0,1.351177]
[1641751614083,0.00031001,42123.0,42121.0,0.56993292]
[1641751614287,0.03675129,42130.0,42124.0,1.10120071]
[1641751614288,0.88141108,42126.0,42124.0,1.10120071]
[1641751614684,0.88141108,42126.0,42125.0,0.786127]
[1641751614882,0.88141108,42126.0,42124.0,0.01937]
[1641751615084,0.88141108,42126.0,42124.0,0.03637]
[1641751615787,0.27514738,42126.0,42124.0,0.017]
[1641751616384,0.27514738,42126.0,42123.0,0.58388052]
[1641751617183,0.27514738,42126.0,42123.0,0.58988052]
[1641751618334,0.27514738,42126.0,42123.0,0.58388052]
[1641751618534,0.27514738,42126.0,42124.0,0.386127]
[1641751619136,0.27514738,42126.0,42124.0,0.006]
[1641751619334,0.27514738,42126.0,42125.0,0.386127]
[1641751620738,0.27514738,42126.0,42125.0,0.686127]
[1641751621182,0.27514738,42126.0,42125.0,1.05754098]
[1641751621484,0.27514738,42126.0,42125.0,0.398127]
[1641751622885,0.27514738,42126.0,42125.0,0.386127]
[1641751623087,0.24514738,42126.0,42125.0,0.455475]
[1641751624286,0.24514738,42126.0,42125.0,0.445475]
[1641751625131,0.24514738,42126.0,42125.0,0.459475]
[1641751626433,0.24514738,42126.0,42125.0,0.445475]
[1641751627234,0.24514738,42126.0,42125.0,0.459475]
[1641751628539,0.24514738,42126.0,42125.0,0.445475]
[1641751629278,0.24514738,42126.0,42125.0,0.463475]
[1641751630479,0.24514738,42126.0,42125.0,0.445475]
[1641751630678,0.28080584,42132.0,42125.0,0.445475]
[1641751631081,0.39738779,42128.0,42125.0,0.059348]
[1641751631280,0.39738779,42128.0,42125.0,0.077348]
[1641751632934,0.39738779,42128.0,42125.0,0.13669239]
[1641751633134,0.39738779,42128.0,42125.0,0.14069239]
[1641751634336,0.39738779,42128.0,42125.0,0.11869239]
[1641751634838,0.39738779,42128.0,42126.0,0.386127]
[1641751635237,0.00019611,42130.0,42126.0,0.386127]
[1641751635438,0.00019611,42130.0,42127.0,0.059344]
[1641751635738,0.00019612,42130.0,42127.0,0.059344]
[1641751636179,0.28040196,42132.0,42127.0,0.059344]
[1641751636384,0.37381415,42129.0,42127.0,0.059344]
[1641751636580,0.37381415,42129.0,42124.0,0.118684]
[1641751636979,0.37361415,42129.0,42124.0,0.118684]
[1641751637181,0.37361415,42129.0,42124.0,0.155684]
[1641751637379,0.37321415,42129.0,42124.0,0.155684]
[1641751637579,0.37301415,42129.0,42124.0,0.155684]
[1641751637779,0.28040196,42132.0,42125.0,0.386127]
[1641751637979,0.28000196,42132.0,42124.0,0.155684]
[1641751638180,0.27980196,42132.0,42124.0,0.155684]
[1641751638383,0.26409255,42125.0,42124.0,0.118684]
[1641751638586,0.26389255,42125.0,42123.0,0.58388052]
[1641751638783,0.49980099,42124.0,42123.0,0.58388052]
[1641751638987,0.50101645,42124.0,42123.0,0.58388052]
[1641751639182,0.50101645,42124.0,42109.0,0.38716274]
[1641751639384,0.42276502,42123.0,42109.0,0.38716274]
[1641751639583,0.61050719,42115.0,42109.0,0.88716274]
[1641751639783,0.61050719,42115.0,42109.0,0.38716274]
[1641751640032,0.61050719,42115.0,42109.0,0.118728]
[1641751640430,0.61050719,42115.0,42109.0,0.118408]
[1641751641033,0.3442238,42114.0,42109.0,0.118408]
[1641751641232,0.3442238,42114.0,42109.0,0.175408]
[1641751642035,0.37039456,42115.0,42109.0,0.17562211]
[1641751642432,0.34464311,42114.0,42109.0,0.00021411]
[1641751642732,0.37039456,42115.0,42109.0,0.00021411]
[1641751643136,0.004,42114.0,42110.0,0.0002141]
[1641751643775,0.004,42114.0,42110.0,0.35739641]
[1641751644180,0.004,42114.0,42110.0,0.69552259]
[1641751644379,0.00126192,42119.0,42110.0,0.69552259]
[1641751644776,0.00126192,42119.0,42110.0,0.35739641]
[1641751645176,0.00626192,42119.0,42110.0,0.40739641]
[1641751645378,0.00626192,42119.0,42112.0,0.0002141]
[1641751646178,0.1433594,42122.0,42112.0,0.0002141]
[1641751646377,0.3029897,42116.0,42113.0,0.00020617]
[1641751647279,0.3049897,42116.0,42113.0,0.05620617]
[1641751647529,0.002,42116.0,42113.0,0.056]
[1641751648525,0.0475,42120.0,42112.0,0.00041266]
[1641751648725,0.0475,42120.0,42112.0,0.00020633]
[1641751649127,0.0505,42120.0,42112.0,0.05820633]
[1641751649727,0.0505,42120.0,42114.0,0.00020632]
[1641751649931,0.003,42120.0,42115.0,0.34834941]
[1641751650629,0.26940947,42122.0,42115.0,0.34834941]
[1641751650827,0.26940947,42122.0,42115.0,0.34855587]
[1641751651285,0.28140947,42122.0,42115.0,0.00820646]
[1641751651891,0.28140947,42122.0,42116.0,0.00020645]
[1641751652490,0.26940947,42122.0,42116.0,0.00020645]
[1641751653090,0.26940947,42122.0,42117.0,0.00020645]
[1641751653291,0.29740947,42122.0,42117.0,0.00020645]
[1641751654093,0.29740947,42122.0,42117.0,0.0004129]
[1641751654292,0.29740947,42122.0,42117.0,0.00020645]
[1641751654494,0.26940947,42122.0,42117.0,0.00020645]
[1641751655135,0.26940947,42122.0,42117.0,0.00041289]
[1641751655335,0.26940947,42122.0,42117.0,0.00020644]
[1641751657338,0.26940947,42122.0,42117.0,0.00041288]
[1641751657636,0.26940947,42122.0,42117.0,0.00020644]
[1641751657836,0.0475,42123.0,42117.0,0.00020644]
[1641751658437,0.40357838,42125.0,42117.0,0.06139644]
[1641751658686,0.40357838,42125.0,42122.0,0.0012054]
[1641751659082,0.81948568,42132.0,42122.0,0.0012054]
[1641751659083,1.35417838,42131.0,42122.0,0.0012054]
[1641751659284,1.35417838,42131.0,42122.0,0.0062054]
[1641751659482,0.40357838,42131.0,42122.0,0.0062054]
[1641751659685,0.40357838,42131.0,42122.0,0.005]
[1641751660185,0.25218571,42132.0,42122.0,0.005]
[1641751660482,0.68369276,42132.0,42121.0,0.00020643]
[1641751660682,0.67869276,42132.0,42124.0,0.00020642]
[1641751660883,0.77869278,42132.0,42124.0,0.00020642]
[1641751661086,0.40357838,42129.0,42118.0,0.35913498]
[1641751661483,0.45357838,42129.0,42118.0,0.35913498]
[1641751661983,0.45357838,42129.0,42118.0,0.23370973]
[1641751662182,0.55357838,42129.0,42116.0,0.0012374]
[1641751662434,0.40357838,42128.0,42116.0,0.0012374]
[1641751662627,0.45357838,42128.0,42116.0,0.0012374]
[1641751663226,0.45357838,42128.0,42116.0,0.0532374]
[1641751663427,0.45357838,42128.0,42116.0,0.38263679]
[1641751664128,0.23733672,42125.0,42116.0,0.38263679]
[1641751664628,0.22543672,42125.0,42116.0,0.33063679]
[1641751664829,0.55368631,42125.0,42116.0,0.33063679]
[1641751665031,0.55368631,42125.0,42118.0,0.00021408]
[1641751666281,0.55368631,42125.0,42119.0,0.00021408]
[1641751667179,0.55368631,42125.0,42119.0,0.01221408]
[1641751667379,0.55368631,42125.0,42120.0,0.00021408]
[1641751668382,0.55368631,42125.0,42120.0,0.20042437]
[1641751668581,0.55368631,42125.0,42120.0,0.00021029]
[1641751668783,0.40357838,42127.0,42120.0,0.00021029]
[1641751669182,0.40357838,42127.0,42120.0,0.01421029]
[1641751669384,0.40357838,42125.0,42120.0,0.01421029]
[1641751669582,0.40357838,42125.0,42121.0,0.00020621]
[1641751669784,0.31117823,42123.0,42121.0,0.00020621]
[1641751670232,0.39135435,42122.0,42121.0,0.00020621]
[1641751670629,0.40357838,42127.0,42120.0,0.00020622]
[1641751671233,0.40357838,42127.0,42120.0,0.00920622]
[1641751671430,0.27523907,42125.0,42120.0,0.00920622]
[1641751671832,0.27523907,42125.0,42121.0,0.00020621]
[1641751672634,0.40357838,42127.0,42121.0,0.00020621]
[1641751672834,0.40357838,42127.0,42121.0,0.00020636]
[1641751673232,0.40357838,42127.0,42121.0,0.00012113]
[1641751673676,1.0,42123.0,42121.0,0.00012113]
[1641751673977,1.23784376,42123.0,42115.0,0.118709]
[1641751674177,1.23784376,42123.0,42113.0,0.38843833]
[1641751675077,0.43327034,42118.0,42113.0,0.29703779]
[1641751675277,0.43327034,42118.0,42113.0,0.33803779]
[1641751676378,0.43327034,42118.0,42115.0,0.05936]
[1641751676778,1.0,42123.0,42115.0,0.05936]
[1641751677279,1.0,42123.0,42115.0,0.011]
[1641751677530,0.19101182,42123.0,42115.0,0.011]
[1641751678133,0.19101182,42123.0,42116.0,0.27236176]
[1641751678332,0.49983699,42123.0,42116.0,0.27236176]
[1641751678931,0.49983699,42123.0,42117.0,0.059357]
[1641751679131,0.19101182,42123.0,42117.0,0.05957109]
[1641751680134,0.19101182,42123.0,42118.0,0.00021408]
[1641751680335,0.33279673,42122.0,42118.0,0.00021408]
[1641751681378,0.47030233,42123.0,42118.0,0.01121408]
[1641751682079,0.0475,42122.0,42118.0,0.01121408]
[1641751682279,0.05006478,42121.0,42118.0,0.01121408]
[1641751682479,0.0475,42120.0,42118.0,0.00021029]
[1641751682878,0.9376064,42119.0,42118.0,0.00021029]
[1641751683080,0.9851064,42119.0,42118.0,0.00021029]
[1641751683282,1.0351064,42119.0,42118.0,0.01221029]
[1641751683479,0.4351064,42119.0,42118.0,0.01221029]
[1641751683680,0.4351064,42119.0,42118.0,0.012]
[1641751684480,0.4351064,42119.0,42117.0,0.00020221]
[1641751684681,0.4351064,42119.0,42116.0,0.00020221]
[1641751685332,0.4461064,42119.0,42116.0,0.00020221]
[1641751685731,0.4461064,42119.0,42115.0,0.00020228]
[1641751686633,0.4351064,42119.0,42115.0,0.00020228]
[1641751686833,0.4351064,42119.0,42115.0,0.00020645]
[1641751687434,0.4411064,42119.0,42115.0,0.01220645]
[1641751687936,0.4411064,42119.0,42115.0,0.01220374]
[1641751688538,0.4351064,42119.0,42115.0,0.00020374]
[1641751688981,0.4351064,42119.0,42115.0,0.00040748]
[1641751689183,0.4301064,42119.0,42115.0,0.00020374]
[1641751689380,0.4431064,42119.0,42115.0,0.00520374]
[1641751689981,0.4431064,42119.0,42115.0,0.0054075]
[1641751690185,0.4431064,42119.0,42115.0,0.00520376]
[1641751690583,0.4301064,42119.0,42115.0,0.00020376]
[1641751691187,0.4301064,42119.0,42115.0,0.00020644]
[1641751692631,0.4301064,42119.0,42111.0,0.38716274]
[1641751693331,0.4301064,42119.0,42111.0,0.40216274]
[1641751693532,0.4301064,42119.0,42115.0,0.33438657]
[1641751693734,0.40419349,42122.0,42115.0,0.33438657]